bitfinex-derivatives/quotes_ETHF0:USTF0_20210111
["timestamp","ask_amount","ask_price","bid_price","bid_amount"]
[1610401365599,4.00959,1031.8,1030.4,9.21780774]
[1610401365799,4.00959,1031.8,1030.6,1.41586758]
[1610401366299,4.00959,1031.8,1030.7,1.41616853]
[1610401366499,4.00959,1031.8,1030.6,3.58129623]
[1610401367202,4.00959,1031.8,1030.6,2.1648]
[1610401367600,4.00959,1031.2,1030.9,4.00959]
[1610401367800,4.00959,1031.2,1030.6,2.1648]
[1610401368701,4.00959,1031.2,1030.8,0.28336214]
[1610401368900,2.0686,1031.6,1030.8,0.28336214]
[1610401369302,2.0686,1031.6,1030.9,0.28351453]
[1610401369501,4.00959,1031.4,1031.0,4.00959]
[1610401369906,4.00959,1031.4,1031.0,4.29299151]
[1610401370105,4.00959,1031.4,1031.0,0.28340151]
[1610401370606,4.00959,1031.4,1030.9,0.28354537]
[1610401371005,4.00959,1031.4,1030.8,0.28374627]
[1610401371606,4.00959,1031.2,1030.8,0.28374627]
[1610401371906,1.6074,1031.6,1030.9,55.2863]
[1610401372107,1.6074,1031.6,1030.9,55.56984004]
[1610401372307,2.0341,1031.9,1030.9,57.66194004]
[1610401372508,20.04511353,1033.1,1031.3,0.28307028]
[1610401372509,64.88394916,1033.1,1031.3,0.28307028]
[1610401372907,64.8700469,1033.3,1031.7,76.3262]
[1610401373206,23.9740482,1033.5,1031.7,76.3262]
[1610401373207,1.9464,1033.4,1031.7,78.3071]
[1610401373406,71.1501518,1033.5,1031.7,78.3071]
[1610401373607,71.1501518,1033.5,1031.7,78.58937854]
[1610401373608,6.294,1033.5,1031.7,78.58937854]
[1610401374008,71.14521136,1033.5,1031.7,78.3071]
[1610401374207,4.00959,1032.0,1031.7,78.3071]
[1610401374406,4.00959,1032.0,1031.7,1.9809]
[1610401375907,1.6213,1032.7,1031.7,13.0541]
[1610401376107,4.00959,1032.6,1032.5,4.00959]
[1610401376407,1.6213,1032.7,1032.5,4.00959]
[1610401376808,1.9089,1033.4,1032.1,70.5629]
[1610401377808,71.1447625,1033.5,1032.1,70.5629]
[1610401378207,4.00959,1033.4,1032.4,4.00959]
[1610401378409,5.82639,1033.4,1032.4,4.00959]
[1610401378608,5.82639,1033.4,1032.1,70.5629]
[1610401378809,7.78139,1033.4,1032.1,70.5629]
[1610401379008,5.82639,1033.4,1032.1,70.5629]
[1610401379911,1.8168,1033.4,1032.1,70.5629]
[1610401380109,1.8168,1033.4,1033.3,4.00959]
[1610401380309,1.8168,1033.4,1032.1,0.28245838]
[1610401380509,1.8168,1033.4,1032.9,64.0193]
[1610401381213,4.00959,1033.6,1032.9,64.0193]
[1610401382111,4.00959,1033.6,1033.3,4.00959]
[1610401382912,4.00959,1033.6,1032.9,66.4567]
[1610401383912,4.00959,1033.6,1032.9,64.0193]
[1610401384113,4.00959,1033.2,1032.9,64.0193]
[1610401385614,1.6534,1033.3,1032.9,64.0193]
[1610401386316,5.66299,1033.3,1032.9,64.0193]
[1610401389322,5.66299,1033.3,1032.2,0.28226409]
[1610401389522,5.66299,1033.3,1032.1,0.28056033]
[1610401390124,1.6534,1033.3,1032.2,0.28001283]
[1610401390325,4.00959,1033.5,1033.0,59.11359]
[1610401390625,1.8135,1033.7,1033.0,55.104]
[1610401390824,64.52474921,1034.2,1033.0,55.104]
[1610401391125,1.9612,1034.2,1033.0,55.104]
[1610401391425,64.51914551,1034.2,1033.0,55.104]
[1610401391924,1.5108,1034.2,1033.0,55.104]
[1610401392324,4.00959,1033.4,1033.0,55.104]
[1610401392624,6.43499,1033.4,1032.5,0.28100209]
[1610401392825,6.43499,1033.4,1032.4,0.28118306]
[1610401393526,6.43499,1033.4,1032.5,0.28133698]
[1610401393827,2.4254,1033.4,1032.4,2.7476946]
[1610401394228,2.4254,1033.4,1033.3,4.00959]
[1610401395130,2.4254,1033.4,1033.3,15.16119]
[1610401395730,0.792,1033.4,1033.3,4.00959]
[1610401396230,4.00959,1034.1,1033.3,4.00959]
[1610401396430,1.5108,1034.2,1033.3,4.00959]
[1610401396933,6.4941,1035.0,1033.3,4.00959]
[1610401396934,64.47735046,1035.0,1033.5,76.976]
[1610401397331,64.45034659,1035.2,1033.5,76.976]
[1610401397731,64.44934517,1035.3,1033.5,76.976]
[1610401398231,4.00959,1034.8,1034.4,4.00959]
[1610401398731,4.00959,1034.8,1034.3,64.3611]
[1610401398732,5.81059,1034.8,1034.3,64.3611]
[1610401400235,4.00959,1035.0,1034.7,4.00959]
[1610401402236,4.00959,1035.0,1034.9,4.00959]
[1610401402638,64.40501764,1035.9,1034.9,4.00959]
[1610401402838,64.40650275,1035.8,1034.9,4.00959]
[1610401403139,64.40463539,1035.9,1034.9,4.00959]
[1610401403637,64.40463539,1035.9,1034.8,68.9401]
[1610401403837,64.40418909,1035.8,1034.8,68.9401]
[1610401404239,64.40418909,1035.8,1035.1,4.00959]
[1610401404641,64.69799318,1035.8,1035.1,4.00959]
[1610401405141,64.69799318,1035.8,1034.8,68.9401]
[1610401405745,64.70734743,1035.7,1034.8,68.9401]
[1610401406243,4.00959,1034.9,1034.8,68.9401]
[1610401406544,4.00959,1034.9,1034.4,1.5179]
[1610401406545,4.00959,1034.9,1034.4,73.0699]
[1610401406846,4.00959,1034.9,1033.8,0.28187744]
[1610401407144,6.33809,1034.9,1033.6,0.28230935]
[1610401407343,6.33809,1034.9,1033.5,0.28249405]
[1610401408045,6.33809,1034.9,1033.2,64.97205125]
[1610401408244,4.00959,1033.3,1033.2,64.6891]
[1610401408447,4.00959,1033.3,1033.0,2.05081813]
[1610401408744,4.00959,1033.3,1033.0,0.28371813]
[1610401408949,4.00959,1033.3,1032.8,0.28383785]
[1610401409146,6.03659,1033.3,1032.7,0.28407188]
[1610401409645,6.03659,1033.3,1032.5,66.12431202]
[1610401409945,6.03659,1033.3,1032.5,65.8397]
[1610401410147,6.03659,1033.3,1032.5,66.12465808]
[1610401410346,4.00959,1033.0,1032.8,4.00959]
[1610401410547,6.11469,1033.0,1032.8,4.00959]
[1610401410845,6.11469,1033.0,1032.5,65.8397]
[1610401411247,6.11469,1033.0,1032.6,0.2847266]
[1610401412046,6.11469,1033.0,1032.5,66.12467903]
[1610401412345,4.00959,1032.8,1032.5,70.13426903]
[1610401412546,2.1051,1033.0,1032.5,69.84929]
[1610401412946,2.1051,1033.0,1032.5,70.13430483]
[1610401413446,1.6969,1033.0,1032.5,70.13430483]
[1610401413647,2.027,1033.3,1032.7,0.28463187]
[1610401413948,2.4159,1034.1,1032.9,0.28406793]
[1610401414146,6.2308,1034.6,1032.9,54.77546793]
[1610401414347,4.00959,1033.9,1033.4,4.00959]
[1610401414547,6.4547,1034.7,1033.4,12.97339]
[1610401414847,6.4547,1034.7,1033.4,4.00959]
[1610401415347,6.4547,1034.7,1033.6,59.1892]
[1610401415547,71.30492332,1035.2,1033.6,59.1892]
[1610401415747,6.5569,1035.2,1033.6,59.1892]
[1610401416047,17.64351803,1035.5,1033.7,0.28321108]
[1610401416048,64.72717392,1035.5,1033.7,0.28321108]
[1610401416347,4.00959,1034.7,1034.4,4.00959]
[1610401416650,1.8996,1035.2,1034.4,4.00959]
[1610401418148,1.8996,1035.2,1034.4,6.04369]
[1610401418349,4.00959,1034.9,1034.7,4.00959]
[1610401419251,2.3138,1035.5,1034.7,4.00959]
[1610401419449,2.4612,1035.8,1034.7,4.00959]
[1610401419650,2.4612,1035.8,1034.7,5.60559]
[1610401419849,2.4612,1035.8,1034.7,84.27699]
[1610401420358,4.00959,1035.3,1035.0,4.00959]
[1610401421253,4.00959,1035.3,1034.8,59.8356]
[1610401421453,4.00959,1035.3,1034.7,1.596]
[1610401421770,4.00959,1035.3,1034.4,1.836355]
[1610401421967,4.00959,1035.3,1034.2,0.56385369]
[1610401422165,4.00959,1035.3,1034.0,0.56488438]
[1610401422368,4.00959,1034.1,1033.8,1.12976875]
[1610401422565,4.00959,1034.1,1033.7,0.56634315]
[1610401422758,5.98889,1034.1,1033.7,0.56634315]
[1610401423159,5.98889,1034.1,1033.4,0.56777099]
[1610401423460,5.98889,1034.1,1033.2,0.56853993]
[1610401423959,5.98889,1034.1,1033.0,0.56916639]
[1610401424362,1.9793,1034.1,1033.0,85.13635639]
[1610401424760,1.9793,1034.1,1033.2,0.56912097]
[1610401424960,1.9793,1034.1,1033.3,0.56903001]
[1610401425664,1.9793,1034.1,1033.2,0.56926964]
[1610401426367,1.9793,1034.1,1033.5,4.00959]
[1610401427167,1.9793,1034.1,1033.5,15.29019]
[1610401427568,1.8093,1034.1,1033.5,15.85933715]
[1610401427867,6.4331,1035.1,1033.5,15.85933715]
[1610401428069,6.4331,1035.1,1033.6,0.5686658]
[1610401428470,4.00959,1034.4,1033.7,0.56867233]
[1610401428670,5.74949,1034.4,1033.5,11.84976943]
[1610401429171,5.74949,1034.4,1033.5,11.2806]
[1610401430371,4.00959,1034.0,1033.5,11.2806]
[1610401430672,5.74839,1034.0,1033.5,11.2806]
[1610401430971,1.7388,1034.0,1033.5,11.2806]
[1610401431672,1.7388,1034.0,1033.5,11.85005624]
[1610401431973,1.7388,1034.0,1033.5,11.56537568]
[1610401432372,4.00959,1033.9,1033.7,4.00959]
[1610401432777,1.7388,1034.0,1033.7,4.00959]
[1610401434280,1.9361,1034.8,1033.7,4.00959]
[1610401434482,4.00959,1034.0,1033.7,4.00959]
[1610401435483,4.00959,1034.0,1033.6,0.28466836]
[1610401435884,4.00959,1034.0,1033.5,0.2849901]
[1610401436285,4.00959,1034.0,1033.4,70.8053]
[1610401436585,1.5307,1034.1,1033.4,71.09042209]
[1610401436987,1.5307,1034.1,1033.4,70.8053]
[1610401438192,1.5307,1034.1,1033.4,71.09001675]
[1610401438387,4.00959,1033.5,1033.4,71.09001675]
[1610401438989,4.00959,1033.5,1033.4,70.8053]
[1610401439788,4.00959,1033.5,1033.1,0.28511696]
[1610401440489,4.00959,1033.2,1033.1,0.28511696]
[1610401440689,4.00959,1033.2,1033.0,0.28546877]
[1610401442093,4.00959,1033.2,1032.8,0.28563904]
[1610401442491,4.00959,1032.9,1032.6,0.28560543]
[1610401442894,4.00959,1032.9,1032.5,0.57121087]
[1610401442895,6.30899,1032.9,1032.5,0.28573106]
[1610401443992,6.30899,1032.9,1032.4,0.28586064]
[1610401444594,4.00959,1032.5,1032.4,0.28586064]
[1610401444793,6.26279,1032.5,1032.4,0.28586064]
[1610401444993,6.26279,1032.5,1032.3,0.28569912]
[1610401445193,6.26279,1032.5,1032.2,0.36689736]
[1610401445394,6.26279,1032.5,1032.0,0.8541006]
[1610401445695,6.26279,1032.5,1031.9,0.85329542]
[1610401445696,6.54849,1032.5,1031.9,0.85329542]
[1610401446096,2.5389,1032.5,1031.8,0.85315776]
[1610401446296,13.8271,1032.5,1031.8,0.85315776]
[1610401446697,13.8271,1032.5,1031.7,0.85311328]
[1610401446698,4.00959,1031.9,1031.7,0.85311328]
[1610401446899,4.00959,1031.9,1031.7,0.59061328]
[1610401447104,4.00959,1031.9,1031.3,1.70622655]
[1610401447105,4.00959,1031.9,1031.3,1.13835252]
[1610401447398,2.2018,1032.1,1031.3,1.13835252]
[1610401447604,2.2018,1032.1,1031.4,1.13639451]
[1610401447805,2.5389,1032.5,1031.4,2.94439451]
[1610401448004,2.5389,1032.5,1031.5,1.1336508]
[1610401448299,4.4794,1032.5,1031.5,1.1336508]
[1610401448702,4.4794,1032.5,1031.4,1.808]
[1610401448703,4.00959,1031.6,1031.4,1.808]
[1610401448900,4.00959,1031.6,1031.4,2.94143008]
[1610401449303,4.00959,1031.6,1031.4,1.808]
[1610401449603,4.00959,1031.6,1031.4,2.94196757]
[1610401450002,4.00959,1031.6,1031.4,1.808]
[1610401450402,4.00959,1031.6,1031.1,3.00477063]
[1610401450603,4.00959,1031.3,1031.1,7.01436063]
[1610401451104,4.00959,1031.3,1031.1,3.00477063]
[1610401452808,4.00959,1031.3,1031.1,1.8684]
[1610401453008,4.00959,1031.3,1031.1,1.5444]
[1610401453208,4.00959,1031.3,1031.0,1.14540625]
[1610401453408,4.00959,1031.3,1031.0,0.37640625]
[1610401453608,4.00959,1031.3,1030.8,1.43511426]
[1610401453811,4.00959,1031.3,1030.6,1.43711222]
[1610401454009,55.1752,1031.2,1030.5,1.43948833]
[1610401454409,55.1752,1031.2,1030.4,1.44041266]
[1610401454811,4.00959,1030.5,1030.3,1.44330128]
[1610401456611,4.00959,1030.5,1030.2,1.44558806]
[1610401456812,4.00959,1030.3,1030.2,1.44558806]
[1610401457712,4.00959,1030.3,1029.6,6.90076612]
[1610401457713,4.00959,1030.3,1030.1,1.4441563]
[1610401458819,4.00959,1030.3,1030.2,0.86683801]
[1610401459413,4.00959,1030.3,1030.2,2.75543801]
[1610401459917,4.00959,1030.3,1030.2,2.46735423]
[1610401460415,4.00959,1030.3,1030.2,0.57875423]
[1610401460616,4.00959,1030.3,1030.2,0.28973009]
[1610401460817,4.00959,1030.3,1030.1,0.2898751]
[1610401461017,6.23599,1030.3,1030.1,0.2898751]
[1610401461718,6.23599,1030.3,1029.9,5.061e-05]
[1610401461918,6.23599,1030.3,1029.6,1.45064479]
[1610401462522,6.23599,1030.3,1029.5,1.45171435]
[1610401462720,4.00959,1029.7,1029.5,1.45171435]
[1610401462921,2.2264,1030.3,1029.5,1.45171435]
[1610401463323,2.2264,1030.3,1029.6,1.45161704]
[1610401463523,2.2264,1030.3,1029.8,1.45018419]
[1610401463823,1.8418,1031.5,1029.8,1.45018419]
[1610401464023,6.3653,1031.6,1030.2,1.15927234]
[1610401464325,6.3653,1031.6,1030.4,1.15751192]
[1610401464523,8.2831,1031.6,1030.5,1.15701168]
[1610401464824,4.00959,1030.6,1030.5,1.15701168]
[1610401465424,2.1042,1031.4,1030.5,1.15701168]
[1610401465724,2.1042,1031.4,1030.5,1.4455166]
[1610401465924,2.1042,1031.4,1030.6,1.15576358]
[1610401466224,2.1042,1031.4,1030.7,1.15550815]
[1610401466428,2.0734,1031.9,1030.7,3.52490815]
[1610401466625,1.848,1032.2,1030.8,1.154216]
[1610401466825,1.848,1032.2,1030.9,1.15271684]
[1610401467024,1.922,1032.2,1030.9,1.15271684]
[1610401467324,1.922,1032.2,1031.0,1.15178233]
[1610401467527,1.922,1032.2,1031.0,3.23708233]
[1610401467730,1.922,1032.2,1031.0,2.0853]
[1610401467924,6.3453,1032.4,1031.0,2.0853]
[1610401468425,6.3453,1032.4,1031.0,3.23681998]
[1610401468724,4.00959,1031.4,1031.0,7.24640998]
[1610401468925,4.00959,1031.4,1031.0,3.23681998]
[1610401469327,4.00959,1031.4,1031.1,1.15110326]
[1610401469927,4.00959,1031.4,1031.0,3.23762045]
[1610401470329,1.6354,1032.1,1031.0,3.23762045]
[1610401470830,1.6354,1032.1,1031.4,4.00959]
[1610401471830,0.2857,1032.5,1031.5,10.425]
[1610401472030,0.2857,1032.5,1031.7,0.28789927]
[1610401472431,0.2857,1032.5,1031.8,0.28784166]
[1610401472834,4.00959,1031.9,1031.8,0.28784166]
[1610401473532,4.00959,1031.9,1031.6,2.61751154]
[1610401474033,1.8796,1032.4,1031.6,0.28831154]
[1610401474432,1.8796,1032.4,1031.6,2.57361154]
[1610401474633,0.2857,1032.5,1031.7,0.28867645]
[1610401474833,0.2857,1032.5,1031.9,0.28838899]
[1610401475834,2.3095,1032.7,1031.9,2.02248899]
[1610401476335,2.3095,1032.7,1031.9,1.7341]
[1610401476535,2.3095,1032.7,1031.9,2.02237393]
[1610401477036,4.00959,1032.6,1032.0,0.28804941]
[1610401477335,4.00959,1032.6,1032.1,0.28808538]
[1610401477636,4.00959,1032.6,1032.0,0.2883946]
[1610401478037,4.00959,1032.6,1032.1,0.28834156]
[1610401478938,2.439,1033.1,1032.1,4.29793156]
[1610401479136,2.439,1033.1,1032.2,0.28850733]
[1610401479340,2.439,1033.1,1032.3,0.28825279]
[1610401479738,6.1146,1033.6,1032.5,0.28798578]
[1610401479938,6.1146,1033.6,1032.5,2.48478578]
[1610401480740,6.1146,1033.6,1032.5,2.1968]
[1610401480741,4.00959,1032.7,1032.5,2.1968]
[1610401481341,4.00959,1032.7,1032.3,0.28856011]
[1610401481742,2.3242,1033.3,1032.4,0.28827648]
[1610401481943,2.3242,1033.3,1032.5,0.28817282]
[1610401482342,6.1146,1033.6,1032.6,0.2878949]
[1610401482744,6.1146,1033.6,1033.2,4.00959]
[1610401483244,64.78878111,1034.5,1033.2,4.00959]
[1610401483544,64.77906565,1034.6,1033.2,4.00959]
[1610401484044,64.77487375,1034.8,1033.1,2.477]
[1610401484444,64.77487375,1034.8,1033.1,10.4322]
[1610401484643,64.77487375,1034.8,1033.1,10.71944568]
[1610401484945,64.76453046,1034.9,1033.4,4.00959]
[1610401485144,1.8078,1034.3,1033.4,4.00959]
[1610401485545,1.8078,1034.3,1033.4,5.94019]
[1610401485746,1.8078,1034.3,1033.4,1.9306]
[1610401486643,77.56169469,1035.0,1033.4,1.9306]
[1610401486844,4.00959,1033.9,1033.4,1.9306]
[1610401487245,2.3591,1034.6,1033.4,1.9306]
[1610401487446,2.3591,1034.6,1033.7,74.6716]
[1610401487945,2.3591,1034.6,1033.7,76.1704]
[1610401488149,71.21018977,1035.3,1033.7,76.1704]
[1610401488746,4.00959,1034.1,1033.8,4.00959]
[1610401489147,2.1401,1035.0,1033.8,4.00959]
[1610401490048,64.72721001,1035.4,1033.8,4.00959]
[1610401490350,64.72064069,1035.6,1033.9,0.28650741]
[1610401490649,77.56510727,1035.7,1033.9,0.28650741]
[1610401490851,4.00959,1034.6,1034.4,4.00959]
[1610401491049,4.00959,1034.6,1033.9,0.28650741]
[1610401491350,4.00959,1034.6,1033.8,0.28614394]
[1610401492452,5.70329,1034.6,1033.7,1.4988]
[1610401492952,5.70329,1034.6,1033.4,1.9306]
[1610401492953,4.00959,1033.8,1033.4,1.9306]
[1610401493355,4.00959,1033.8,1033.3,0.28678101]
[1610401493854,4.00959,1033.8,1033.2,0.28706712]
[1610401494655,4.00959,1033.8,1033.1,0.28721661]
[1610401494855,4.00959,1033.5,1033.1,0.28721661]
[1610401495657,4.00959,1033.5,1033.2,2.24713061]
[1610401495958,2.3405,1034.0,1033.2,13.69043061]
[1610401496256,2.3405,1034.0,1033.2,13.86283061]
[1610401496458,2.3405,1034.0,1033.3,0.2869774]
[1610401496656,2.3405,1034.0,1033.4,0.28690604]
[1610401496959,4.00959,1034.1,1033.5,4.00959]
[1610401497557,4.00959,1034.1,1033.5,6.1536214]
[1610401497757,4.00959,1034.1,1033.6,0.2866984]
[1610401497958,4.00959,1034.1,1033.5,6.15357486]
[1610401498157,4.00959,1034.1,1033.5,2.14398486]
[1610401498560,4.1841,1034.3,1033.5,2.14398486]
[1610401498761,2.2528,1034.3,1033.4,0.2868678]
[1610401499163,2.2528,1034.3,1033.2,0.28727843]
[1610401499164,4.00959,1033.5,1033.2,0.28727843]
[1610401499362,4.00959,1033.5,1033.0,0.28761919]
[1610401499762,4.00959,1033.5,1032.9,0.28796185]
[1610401499763,6.38859,1033.5,1032.9,0.28796185]
[1610401500263,6.38859,1033.5,1032.7,0.86388556]
[1610401500264,6.38859,1033.5,1032.7,0.28829624]
[1610401500464,6.38859,1033.5,1032.6,0.57659248]
[1610401500465,6.38859,1033.5,1032.6,0.28853801]
[1610401500864,6.38859,1033.5,1032.4,0.28879285]
[1610401501165,6.38859,1033.5,1032.3,59.7590857]
[1610401501166,4.00959,1032.5,1032.3,59.47039236]
[1610401501862,1.6398,1032.7,1032.3,59.47039236]
[1610401502363,1.6398,1032.7,1032.4,0.28861726]
[1610401502764,1.6398,1032.7,1032.3,0.28849276]
[1610401503165,4.00959,1032.4,1032.2,0.28870369]
[1610401503565,4.00959,1032.4,1032.1,0.57740737]
[1610401503566,6.04889,1032.4,1032.1,0.28817128]
[1610401504067,6.04889,1032.4,1031.9,0.28805946]
[1610401504265,6.04889,1032.4,1031.7,0.86417837]
[1610401504266,6.04889,1032.4,1031.7,0.28821765]
[1610401504466,6.04889,1032.4,1031.6,0.28851796]
[1610401504667,6.04889,1032.4,1031.4,0.86555388]
[1610401504866,6.04889,1032.4,1031.3,0.86557235]
[1610401506370,4.00959,1031.3,1030.6,1.44441818]
[1610401506571,4.00959,1031.3,1030.5,1.44472314]
[1610401507271,4.00959,1030.6,1030.4,1.44539869]
[1610401507972,4.00959,1030.6,1030.4,0.96759869]
[1610401508172,4.00959,1030.6,1030.1,1.73619593]
[1610401508876,4.00959,1030.6,1030.0,1.73844656]
[1610401509072,4.00959,1030.6,1029.9,1.73943878]
[1610401509276,4.00959,1030.1,1029.9,1.73943878]
[1610401509474,4.00959,1030.1,1029.8,1.74092696]
[1610401509876,4.00959,1030.1,1029.7,1.74226681]
[1610401510676,4.00959,1030.1,1029.5,2.32302241]
[1610401510677,77.03679,1030.1,1029.5,1.74661397]
[1610401510876,77.03679,1030.1,1029.3,2.32881862]
[1610401511077,77.03679,1030.1,1029.1,2.33198411]
[1610401511278,4.00959,1029.2,1029.0,2.33414284]
[1610401511680,4.00959,1029.2,1028.9,2.33586713]
[1610401512379,4.00959,1029.2,1029.1,2.33587515]
[1610401512579,4.00959,1029.2,1029.1,4.39257515]
[1610401512881,4.00959,1029.2,1029.1,2.0567]
[1610401513884,4.00959,1029.2,1029.1,0.1425]
[1610401514085,4.00959,1029.2,1028.8,2.34389368]
[1610401514583,4.00959,1029.2,1028.6,5.9298671]
[1610401514584,4.00959,1029.2,1028.7,2.345512]
[1610401515284,4.00959,1028.8,1028.7,2.345512]
[1610401515685,2.0253,1029.9,1028.7,2.345512]
[1610401515987,2.0253,1029.9,1029.5,0.29317925]
[1610401516286,2.0253,1029.9,1029.6,0.29276836]
[1610401516687,2.0253,1029.9,1029.7,0.29267848]
[1610401517187,78.12,1030.6,1029.6,0.58535697]
[1610401517188,4.00959,1029.7,1029.6,0.2927737]
[1610401517485,4.00959,1029.7,1029.6,0.58491562]
[1610401517885,4.00959,1029.7,1029.6,0.29236156]
[1610401518086,4.00959,1029.7,1029.6,0.58448122]
[1610401518387,4.00959,1029.7,1029.6,0.87596687]
[1610401518786,4.00959,1029.7,1029.6,1.16475259]
[1610401519788,4.00959,1029.7,1029.6,0.8722911]
[1610401520294,1.5461,1030.5,1029.6,0.8722911]
[1610401520488,1.5461,1030.5,1029.6,1.16043057]
[1610401520788,6.2311,1031.0,1030.0,0.28973166]
[1610401520789,12.2861,1031.0,1030.0,0.28973166]
[1610401521189,12.2861,1031.0,1030.2,0.28922753]
[1610401521790,14.2109,1031.0,1030.2,0.28922753]
[1610401522088,14.2109,1031.0,1030.1,0.28868617]
[1610401522589,16.4954,1031.0,1030.1,0.28868617]
[1610401522888,27.9675,1031.0,1030.0,0.28881709]
[1610401523088,27.9675,1031.0,1029.9,0.28877471]
[1610401523287,4.00959,1030.0,1029.9,0.28877471]
[1610401523789,4.00959,1030.0,1029.8,0.28893932]
[1610401523989,4.00959,1030.0,1029.6,0.54053594]
[1610401524392,4.00959,1030.0,1029.4,1.1552406]
[1610401524692,4.00959,1030.0,1029.5,1.15433805]
[1610401524890,2.1951,1030.2,1029.5,1.15433805]
[1610401525091,2.1951,1030.2,1029.6,1.1531087]
[1610401525293,4.00959,1029.7,1029.6,1.1531087]
[1610401525791,4.00959,1029.7,1029.6,1.4389943]
[1610401526691,4.00959,1029.7,1029.6,0.96476184]
[1610401526892,4.00959,1029.7,1029.6,0.35466184]
[1610401527091,4.00959,1029.7,1029.3,1.8984]
[1610401527391,4.00959,1029.4,1029.3,1.8984]
[1610401527591,4.00959,1029.4,1029.3,1.803]
[1610401527792,4.00959,1029.4,1029.0,2.375]
[1610401528195,4.00959,1029.4,1028.8,1.72821673]
[1610401528693,4.00959,1029.4,1028.7,4.11435919]
[1610401529293,4.00959,1028.8,1028.7,4.11435919]
[1610401529596,4.00959,1028.8,1028.7,2.3861]
[1610401529798,4.00959,1028.8,1028.6,4.7287111]
[1610401530200,4.00959,1028.8,1028.4,2.90464814]
[1610401530201,4.00959,1028.8,1028.3,1.73296303]
[1610401530395,4.00959,1028.8,1028.1,1.73559744]
[1610401530595,4.00959,1028.8,1027.8,2.31412992]
[1610401530895,4.00959,1028.8,1027.4,73.68039488]
[1610401530896,4.00959,1028.8,1027.5,2.31706668]
[1610401531303,77.5809,1028.5,1027.5,2.31706668]
[1610401531597,77.5809,1028.5,1027.3,2.32316449]
[1610401531898,4.00959,1027.4,1027.3,2.32316449]
[1610401532099,4.00959,1027.4,1027.0,2.90575483]
[1610401532498,4.00959,1027.4,1026.8,3.4864971]
[1610401532499,4.00959,1027.4,1026.9,2.90699094]
[1610401532701,4.00959,1027.4,1026.7,3.48838913]
[1610401533000,4.00959,1027.4,1026.0,76.6035]
[1610401533001,13.38889,1027.4,1026.5,3.49491007]
[1610401533500,13.38889,1027.4,1025.2,5.24236511]
[1610401533501,70.6932,1026.7,1025.5,4.66357673]
[1610401533701,4.00959,1025.6,1025.3,4.66555078]
[1610401534198,4.00959,1025.6,1024.9,4.67410003]
[1610401534600,79.3074,1025.4,1024.8,2.90891394]
[1610401534799,79.3074,1025.4,1024.1,5.26376893]
[1610401535101,79.3074,1025.4,1023.8,6.0123]
[1610401535298,79.3074,1025.4,1023.7,62.51582652]
[1610401535500,79.3074,1025.4,1023.7,57.2427]
[1610401535702,4.00959,1024.2,1023.7,4.00959]
[1610401535901,67.5877,1025.3,1023.7,4.00959]
[1610401536302,67.5877,1025.3,1023.7,18.00599]
[1610401536502,1.9556,1025.9,1024.1,64.2901]
[1610401536703,1.9556,1025.9,1024.1,66.6316]
[1610401536903,1.9556,1025.9,1025.8,0.87574367]
[1610401537105,2.395,1026.2,1025.8,0.87574367]
[1610401537304,2.395,1026.2,1025.8,1.45781212]
[1610401537503,1.7319,1026.5,1025.8,1.45781212]
[1610401537705,1.7319,1026.5,1026.1,1.16436084]
[1610401537906,4.00959,1026.5,1026.1,1.16436084]
[1610401538104,4.00959,1026.5,1026.3,1.16346895]
[1610401538304,4.00959,1026.5,1026.3,1.00306895]
[1610401538505,4.00959,1026.5,1026.2,0.29170627]
[1610401538803,4.00959,1026.5,1026.1,0.58341254]
[1610401538804,6.40929,1026.5,1025.2,1.8619]
[1610401539406,6.40929,1026.5,1025.2,0.2706]
[1610401539707,59.7226,1026.2,1024.2,69.5038]
[1610401539907,4.00959,1024.3,1024.2,69.5038]
[1610401540106,4.00959,1024.3,1024.2,6.0081]
[1610401541212,2.0846,1025.2,1024.2,6.0081]
[1610401541411,2.0846,1025.2,1024.5,81.4553]
[1610401541713,1.5657,1026.2,1024.8,1.76545705]
[1610401541913,1.5657,1026.2,1026.0,4.00959]
[1610401542114,76.5931,1027.3,1025.6,2.23]
[1610401542316,78.5196,1027.3,1025.6,2.23]
[1610401542515,1.9416,1026.6,1025.6,2.23]
[1610401543116,75.3273,1026.6,1025.6,2.23]
[1610401543327,75.3273,1026.6,1025.3,3.6269711]
[1610401543516,75.3273,1026.6,1025.3,1.7641711]
[1610401543820,4.00959,1025.3,1025.2,1.76733257]
[1610401544217,6.41999,1025.3,1025.2,0.84033257]
[1610401544418,6.41999,1025.3,1024.7,2.36700206]
[1610401544718,2.4095,1025.8,1024.8,2.36870107]
[1610401544920,1.8488,1025.8,1024.8,56.95960107]
[1610401545120,1.7548,1026.5,1025.2,2.36639921]
[1610401545319,1.7548,1026.5,1025.3,10.2147]
[1610401545520,1.7548,1026.5,1025.3,2.36612927]
[1610401546024,4.00959,1026.0,1025.6,2.36459987]
[1610401546221,4.00959,1026.0,1025.4,2.36670668]
[1610401546421,4.00959,1026.0,1025.6,1.7682]
[1610401547822,4.00959,1025.7,1025.6,1.7682]
[1610401548323,1.7548,1026.5,1025.6,1.7682]
[1610401548623,1.7548,1026.5,1026.1,0.88855367]
[1610401548923,1.7548,1026.5,1026.4,0.29615245]
[1610401549224,1.9337,1027.3,1026.4,0.29615245]
[1610401549428,1.9337,1027.3,1026.3,0.29613604]
[1610401549624,3.508,1027.3,1026.3,0.29613604]
[1610401549824,3.508,1027.3,1026.4,0.29613919]
[1610401550225,3.508,1027.3,1026.3,0.29616861]
[1610401550424,3.508,1027.3,1026.2,0.29617296]
[1610401551025,3.508,1027.3,1026.4,0.2961636]
[1610401551226,1.5743,1027.3,1026.4,0.2961636]
[1610401551527,1.5743,1027.3,1026.5,0.2961168]
[1610401551728,1.5743,1027.3,1026.6,0.29610026]
[1610401552026,4.00959,1026.7,1026.5,0.29611136]
[1610401552827,5.96369,1026.7,1026.5,0.29611136]